fUSD/lending_fUSD_20241107
["ID","MTS","AMOUNT","RATE_DAILY","PERIOD"]
[341558217,1730988632910,-190.23,0.00028646,120]
[341558219,1730988632920,-155.5,0.00028657,2]
[341558221,1730988632929,-166.85,0.00028735,2]
[341558223,1730988632939,-251.1523,0.00028764,2]
[341558225,1730988632948,-500.0,0.000288,120]
[341558227,1730988632958,-764.94,0.00028864,2]
[341558229,1730988632967,-6761.94,0.00028989,2]
[341558231,1730988632976,-1353.08165516,0.00028999,2]
[341558233,1730988632986,-13560.26000715,0.00029,2]
[341558235,1730988632996,-175.78277902,0.00029072,2]
[341558237,1730988633005,-6438.21,0.00029172,2]
[341558239,1730988633015,-261.84,0.00029172,2]
[341558241,1730988633026,-155.33,0.00029172,2]
[341558243,1730988633036,-1133.12,0.00029172,4]
[341558245,1730988633047,-330.34,0.00029172,120]
[341558247,1730988633059,-599.79024096,0.00029172,2]
[341558249,1730988633072,-1055.79975904,0.00029172,2]
[341558251,1730988633083,-1769.36,0.00029172,2]
[341558253,1730988633092,-910.69,0.00029172,2]
[341558255,1730988633102,-6476.10766965,0.00029172,2]
[341558257,1730988633114,-13838.12233035,0.00029172,2]
[341558259,1730988633124,-250.0,0.00029172,2]
[341558261,1730988633134,-160.15,0.00029172,2]
[341558263,1730988633144,-250.0,0.00029172,2]
[341558265,1730988633153,-324.10240305,0.00029173,5]
[341558267,1730988633163,-631.64548,0.000292,30]
[341558269,1730988633173,-500.0,0.000292,5]
[341558271,1730988633183,-166.76,0.00029342,2]
[341558273,1730988633192,-3727.0441866,0.00029447,2]
[341558276,1730988633209,-3034.8958134,0.00029447,2]
[341558278,1730988633218,-175.78277901,0.00029486,2]
[341558280,1730988633229,-790.47478,0.000297,2]
[341558281,1730988633241,-480.60662759,0.0002972,2]
[341558285,1730988633271,-309.86815241,0.0002972,2]
[341558287,1730988633281,-2942.43220719,0.000298,85]
[341558289,1730988633291,-790.47478,0.000298,2]
[341558291,1730988633302,-766.00966592,0.000298,15]
[341558293,1730988633314,-601.52509941,0.00029842,5]
[341558295,1730988633325,-1197.74247045,0.00029849,4]
[341558297,1730988633335,-5800.0,0.00029883,2]
[341558299,1730988633345,-150.41,0.0002989,3]
[341558300,1730988633354,-451.23,0.0002989,3]
[341558302,1730988633364,-5800.0,0.00029892,2]
[341558304,1730988633374,-3000.0,0.000299,90]
[341558306,1730988633383,-5800.0,0.000299,2]
[341558308,1730988633394,-885.03412696,0.000299,2]
[341558310,1730988633404,-885.03412695,0.000299,2]
[341558312,1730988633414,-175.78277901,0.000299,2]
[341558314,1730988633424,-885.03412695,0.000299,2]
[341558316,1730988633434,-885.03412695,0.000299,2]
[341558318,1730988633444,-885.03412695,0.000299,2]
[341558320,1730988633454,-317.65301012,0.000299,2]
[341558322,1730988633464,-885.03412695,0.000299,2]
[341558324,1730988633475,-885.03412695,0.000299,2]
[341558326,1730988633485,-9873.84471461,0.000299,2]
[341558333,1730988633547,-689.974,0.000299,2]
[341558489,1730988638360,-365.93108091,0.00029811,15]
[341558490,1730988638382,-400.07858499,0.00029811,15]
[341558491,1730988638392,-348.74804645,0.000299,2]
[341558492,1730988638573,-1.22206193,0.000299,2]
[341558493,1730988638771,-535.06401857,0.000299,2]
[341558494,1730988638780,-885.03412695,0.000299,2]
[341558495,1730988638791,-426.09618184,0.000299,2]
[341558499,1730988639196,-458.93794511,0.000299,2]
[341558500,1730988639205,-885.03412695,0.000299,2]
[341558501,1730988639215,-446.18148147,0.000299,2]
[341558502,1730988639922,500.0,0.00027,120]
[341558509,1730988640691,-766.0096659,0.00029822,15]
[341558510,1730988640700,-438.85264548,0.000299,2]
[341558511,1730988640710,-3510.41764958,0.000299,2]
[341558512,1730988640720,-273.08125407,0.000299,2]
[341558513,1730988640733,-901.4202829,0.000299,2]
[341558514,1730988640771,-725.98143357,0.000299,2]
[341558515,1730988640781,-841.68930156,0.000299,2]
[341558526,1730988643401,-4008.28578336,0.000299,2]
[341558527,1730988643410,-4789.74281021,0.00029905,2]
[341558528,1730988643426,-686.6132303,0.00029905,2]
[341558529,1730988643437,-906.17357973,0.00029905,2]
[341558530,1730988643448,-379.41037976,0.00029905,2]
[341558531,1730988643458,-888.97157879,0.00029917,2]
[341558532,1730988643467,-1500.0,0.00029968,2]
[341558533,1730988643476,-500.0,0.00029973,5]
[341558534,1730988643485,-500.0,0.00029973,5]
[341558535,1730988643495,-502.00205463,0.00029973,5]
[341558536,1730988643504,-190.46054782,0.00029973,5]
[341558537,1730988643514,-298.95497874,0.00029973,5]
[341558538,1730988643523,-1930.58,0.00029978,2]
[341558539,1730988643532,-14.03695641,0.00029978,2]
[341558540,1730988643559,-951.65304359,0.00029978,2]
[341558541,1730988643568,-2045.50631041,0.0002999,2]
[341558542,1730988643580,-3070.66608634,0.0002999,2]
[341558543,1730988643589,-500.0,0.00029997,2]
[341558544,1730988643598,-500.0,0.00029997,2]
[341558545,1730988643607,-500.0,0.00029997,2]
[341558546,1730988643616,-500.0,0.00029997,2]
[341558547,1730988643625,-500.0,0.00029997,2]
[341558548,1730988643635,-423.12391374,0.00029997,2]
[341558549,1730988643764,-128.1783741,0.00029997,2]
[341558550,1730988643774,-6301.9941903,0.00029998,2]
[341558551,1730988643783,-5765.1063029,0.00029998,2]
[341558552,1730988643792,-6550.088664,0.00029998,2]
[341558553,1730988643801,-8398.8635901,0.00029998,2]
[341558554,1730988643811,-882.71541204,0.00029998,2]
[341558555,1730988643820,-1620.0841685,0.00029998,2]
[341558556,1730988643830,-151.0,0.00029999,2]
[341558557,1730988643840,-239.92824521,0.00029999,2]
[341558558,1730988643849,-790.47478,0.00029999,2]
[341558559,1730988643858,-790.47478,0.00029999,2]
[341558561,1730988643868,-790.47479,0.00029999,2]
[341558563,1730988643877,-599380.39677317,0.0003,5]
[341558565,1730988643889,-485.305,0.0003,5]
[341558568,1730988643900,-20809.1764867,0.0003,5]
[341558570,1730988643911,-35305.23360127,0.0003,5]
[341558572,1730988643922,-34860.0,0.0003,5]
[341558574,1730988643934,-24997.25898189,0.0003,5]
[341558576,1730988643945,-763.43869,0.0003,5]
[341558579,1730988643956,-11997.92,0.0003,5]
[341558589,1730988644052,-141.84453191,0.00029973,5]
[341558592,1730988644070,-358.15546809,0.00029973,5]
[341558594,1730988644113,-3434.82213868,0.0003,5]
[341558597,1730988644287,-905.3748909,0.0003,5]
[341558601,1730988646610,-766.0096659,0.00029833,15]
[341558602,1730988646621,-384.02412248,0.00029997,2]
[341558603,1730988646635,-115.97587752,0.00029997,2]
[341558604,1730988646645,-313.95799312,0.00029997,2]
[341558605,1730988646655,-500.0,0.00029997,2]
[341558606,1730988646665,-500.0,0.00029997,2]
[341558607,1730988646675,-2501.31354465,0.0003,5]
[341558608,1730988646803,-2361.61584179,0.0003,5]
[341558609,1730988646838,-500.0,0.00029997,2]
[341558610,1730988646848,-55522.19969358,0.0003,5]
[341558611,1730988646899,-500.0,0.00029997,2]
[341558612,1730988646913,-70670.54578978,0.0003,5]
[341558617,1730989047342,250.0,0.00021,2]
[341558618,1730989509084,50000.0,0.00016,2]
[341558619,1730989509108,50000.0,0.00016,2]
[341558620,1730989509131,48077.2,0.00016,2]
[341558621,1730989509155,50000.0,0.00016,2]
[341558622,1730989509179,59839.90020601,0.00016,2]
[341558623,1730989509203,494664.701,0.00016,2]
[341558624,1730989509234,2103253.95237105,0.00016,2]
[341558625,1730989525649,150.0,0.00015342,2]
[341558626,1730989525673,8.35,0.00015342,2]
[341558627,1730989564776,1500.0,0.00025,120]
[341558629,1730989594420,141.65,0.00015,2]
[341558630,1730989594450,150.0,0.00015,2]
[341558631,1730989594481,150.0,0.00015,2]
[341558632,1730989594512,69.33344472,0.00015,2]
[341558633,1730989643134,-402.50218551,0.00022,2]
[341558634,1730989682575,80.66655528,0.00019725,2]
[341558635,1730989682614,219.33344472,0.00019725,2]
[341558636,1730989685553,2043.91235714,0.00022,120]
[341558637,1730989703724,499.999999,0.0002,2]
[341558639,1730989728687,2133.64894812,0.000145,120]
[341558640,1730989741518,300.0,0.00019725,2]
[341558641,1730989745097,-27709.50307122,0.00022,2]
[341558642,1730989745118,-214.49,0.00022462,2]
[341558643,1730989745141,-300.0,0.00023,2]
[341558644,1730989745162,-2941.831032,0.0002445,2]
[341558645,1730989745184,-350.0,0.00025,2]
[341558646,1730989745204,-2241.0,0.000258,3]
[341558647,1730989745225,-997.19694088,0.000258,2]
[341558648,1730989745245,-236.83,0.000258,10]
[341558649,1730989745266,-15372.3505159,0.000258,2]
[341558650,1730989746323,-3576.0194841,0.000258,2]
[341558651,1730989746345,-150.99,0.000258,2]
[341558652,1730989746367,-1353.91,0.00026464,2]
[341558653,1730989746388,-400.0,0.00027,2]
[341558654,1730989746408,-2000.0,0.00027,120]
[341558655,1730989746429,-3967.49,0.00027607,2]
[341558656,1730989746450,-150.0,0.00027788,2]
[341558657,1730989746471,-2186.47594612,0.00028,15]
[341558658,1730989746492,-3967.49,0.00028051,2]
[341558659,1730989746512,-439.08,0.00028229,2]
[341558660,1730989746533,-166.86,0.00028243,2]
[341558661,1730989746553,-640.0,0.00028248,2]
[341558662,1730989746575,-23900.0,0.00028251,2]
[341558663,1730989746598,-250.0,0.00028297,2]
[341558664,1730989746620,-200.0,0.00028327,7]
[341558665,1730989746643,-910.69,0.00028335,2]
[341558666,1730989746666,-431.61,0.00028351,120]
[341558667,1730989746686,-250.0,0.00028362,2]
[341558668,1730989746707,-791.43,0.00028386,2]
[341558669,1730989746728,-500.0,0.00028403,2]
[341558670,1730989746748,-189.55529712,0.00028403,2]
[341558671,1730989746770,-356.74248263,0.00028403,2]
[341558672,1730989746791,-1424.23,0.00028404,2]
[341558673,1730989746812,-271.57,0.0002848,30]
[341558674,1730989746833,-3967.49,0.00028494,2]
[341558678,1730989801415,300.0,0.00019725,2]
[341558679,1730989804696,153.725,0.00012184,2]
[341558686,1730989831586,-165.18,0.00028562,2]
[341558687,1730989831596,-209.045,0.00028645,2]
[341558688,1730989831607,-252.79524032,0.00028645,2]
[341558748,1730989832784,-593.95975968,0.00028645,2]
[341558750,1730989832793,-1272.46,0.00028645,2]
[341558752,1730989832803,-250.0,0.00028666,2]
[341558754,1730989832812,-1353.91,0.00028728,2]
[341558756,1730989832822,-167.71,0.00028755,2]
[341558758,1730989832832,-17788.47406852,0.00028818,2]
[341558760,1730989832841,-15790.0,0.00028818,2]
[341558762,1730989832851,-5055.939,0.00028899,2]
[341558764,1730989832860,-167.71,0.00028899,2]
[341558766,1730989832870,-645.54,0.00028929,2]
[341558768,1730989832879,-230.0,0.00028937,2]
[341558770,1730989832890,-3967.49,0.00028938,2]
[341558772,1730989832899,-173.53,0.00028944,120]
[341558774,1730989832908,-200.35,0.0002899,3]
[341558775,1730989832917,-601.08,0.0002899,3]
[341558776,1730989832927,-42783.57,0.00029,30]
[341558777,1730989832936,-450.0,0.00029,2]
[341558778,1730989832945,-167.71,0.00029043,2]
[341558779,1730989832954,-2219.59819316,0.00029072,15]
[341558780,1730989832964,-166.76,0.00029081,2]
[341558781,1730989832973,-2219.59819315,0.00029164,15]
[341558782,1730989832984,-360.0,0.00029172,2]
[341558783,1730989832993,-247.77,0.00029172,2]
[341558784,1730989833002,-6509.23,0.00029172,2]
[341558785,1730989833011,-420.29,0.00029172,2]
[341558786,1730989833022,-500.0,0.00029172,2]
[341558787,1730989833031,-2000.0,0.00029172,120]
[341558788,1730989833040,-250.0,0.00029172,2]
[341558789,1730989833050,-200.0,0.00029172,7]
[341558790,1730989833059,-185.28,0.00029172,2]
[341558791,1730989833068,-2219.59819315,0.00029256,15]
[341558792,1730989833078,-2219.59819315,0.00029348,15]
[341558793,1730989833087,-1118.77801968,0.00029382,2]
[341558794,1730989833101,-2848.71198032,0.00029382,2]
[341558795,1730989833111,-2219.59819315,0.0002944,15]
[341558796,1730989833121,-2219.59819315,0.00029532,15]
[341558797,1730989833131,-2219.59819315,0.00029624,15]
[341558798,1730989833140,-8039.87593103,0.000297,2]
[341558799,1730989833150,-159.82846,0.000297,2]
[341558800,1730989833160,-2219.59819315,0.00029716,15]
[341558801,1730989833169,-150.0,0.00029725,2]
[341558802,1730989833179,-1500.0,0.00029726,2]
[341558803,1730989833188,-150.0,0.00029727,2]
[341558804,1730989833199,-150.0,0.00029727,2]
[341558805,1730989833214,-150.0,0.00029728,2]
[341558806,1730989833232,-150.0,0.00029731,2]
[341558807,1730989833241,-150.0,0.00029731,2]
[341558808,1730989833252,-150.0,0.0002974,2]
[341558809,1730989833262,-150.0,0.0002974,2]
[341558810,1730989833272,-261.83825518,0.0002974,2]
[341558811,1730989833282,-150.0,0.00029743,2]
[341558812,1730989833292,-150.0,0.00029744,2]
[341558813,1730989833302,-150.0,0.00029749,2]
[341558814,1730989833312,-150.0,0.00029749,2]
[341558815,1730989833322,-150.0,0.00029749,2]
[341558816,1730989833332,-150.0,0.00029749,2]
[341558817,1730989833341,-150.0,0.00029749,2]
[341558818,1730989833354,-150.0,0.00029749,2]
[341558819,1730989833364,-299.81023498,0.0002975,2]
[341558820,1730989833373,-150.0,0.00029753,2]
[341558821,1730989833382,-150.0,0.00029753,2]
[341558822,1730989833392,-150.0,0.00029754,2]
[341558823,1730989833402,-1500.0,0.00029754,2]
[341558824,1730989833411,-150.0,0.00029756,2]
[341558825,1730989833420,-150.0,0.00029756,2]
[341558826,1730989833430,-150.0,0.00029758,2]
[341558827,1730989833440,-150.0,0.0002976,2]
[341558828,1730989833450,-150.0,0.00029761,2]
[341558829,1730989833467,-150.0,0.00029763,2]
[341558830,1730989833476,-150.0,0.00029764,2]
[341558831,1730989833486,-150.0,0.00029766,2]
[341558832,1730989833495,-150.0,0.00029766,2]
[341558833,1730989833504,-150.0,0.00029771,2]
[341558834,1730989833513,-150.0,0.00029773,2]
[341558835,1730989833523,-150.0,0.00029776,2]
[341558836,1730989833532,-150.0,0.00029778,2]
[341558837,1730989833541,-1500.0,0.0002978,2]
[341558838,1730989833551,-150.0,0.00029783,2]
[341558839,1730989833560,-150.0,0.00029783,2]
[341558840,1730989833570,-150.0,0.00029784,2]
[341558841,1730989833580,-150.0,0.00029784,2]
[341558842,1730989833590,-150.0,0.00029787,2]
[341558843,1730989833600,-150.0,0.00029788,2]
[341558844,1730989833610,-150.0,0.00029791,2]
[341558845,1730989833620,-150.0,0.00029792,2]
[341558846,1730989833633,-150.0,0.00029799,2]
[341558847,1730989833643,-150.0,0.000298,2]
[341558848,1730989833653,-150.0,0.00029801,2]
[341558849,1730989833662,-150.0,0.00029804,2]
[341558850,1730989833676,-150.0,0.00029805,2]
[341558851,1730989833686,-2219.59819315,0.00029808,15]
[341558852,1730989833696,-1500.0,0.00029809,2]
[341558853,1730989833712,-150.0,0.0002981,2]
[341558854,1730989833722,-150.0,0.0002981,2]
[341558855,1730989833732,-150.0,0.00029811,2]
[341558856,1730989833742,-150.0,0.00029812,2]
[341558857,1730989833751,-150.0,0.00029813,2]
[341558858,1730989833761,-150.0,0.00029815,2]
[341558859,1730989833771,-150.0,0.00029819,2]
[341558860,1730989833781,-150.0,0.00029819,2]
[341558861,1730989833790,-150.0,0.00029822,2]
[341558862,1730989833801,-3967.49,0.00029825,2]
[341558863,1730989833811,-150.0,0.00029827,2]
[341558864,1730989833820,-150.0,0.00029828,2]
[341558865,1730989833830,-150.0,0.00029831,2]
[341558866,1730989833839,-150.0,0.00029831,2]
[341558867,1730989833849,-150.0,0.00029833,2]
[341558868,1730989833859,-150.0,0.00029834,2]
[341558869,1730989833869,-262.37949799,0.00029835,2]
[341558870,1730989833879,-150.0,0.00029835,2]
[341558871,1730989833888,-1500.0,0.00029836,2]
[341558872,1730989833898,-150.0,0.00029837,2]
[341558873,1730989833907,-156.45319026,0.00029838,2]
[341558874,1730989833917,-150.0,0.00029839,2]
[341558875,1730989833926,-150.0,0.0002984,2]
[341558876,1730989833936,-150.0,0.00029841,2]
[341558877,1730989833945,-150.0,0.00029843,2]
[341558878,1730989833957,-150.0,0.00029844,2]
[341558879,1730989833967,-150.0,0.00029852,2]
[341558880,1730989833976,-150.0,0.00029857,2]
[341558881,1730989833986,-1500.0,0.00029864,2]
[341558882,1730989833996,-150.0,0.00029865,2]
[341558883,1730989834005,-150.0,0.00029867,2]
[341558884,1730989834015,-150.0,0.00029867,2]
[341558885,1730989834025,-150.0,0.00029871,2]
[341558886,1730989834034,-150.0,0.00029872,2]
[341558887,1730989834044,-160.21600824,0.00029873,5]
[341558888,1730989834054,-500.0,0.00029873,5]
[341558889,1730989834064,-232.92349934,0.00029873,2]
[341558890,1730989834075,-500.0,0.00029874,3]
[341558891,1730989834084,-150.0,0.00029875,2]
[341558892,1730989834094,-1500.0,0.00029875,2]
[341558893,1730989834103,-232.92349927,0.00029877,2]
[341558894,1730989834112,-150.0,0.00029878,2]
[341558895,1730989834122,-500.0,0.00029882,3]
[341558896,1730989834133,-150.0,0.00029883,2]
[341558897,1730989834142,-150.0,0.00029885,2]
[341558898,1730989834152,-1500.0,0.00029888,2]
[341558899,1730989834161,-150.0,0.00029891,2]
[341558900,1730989834170,-500.0,0.00029891,3]
[341558901,1730989834180,-150.0,0.00029893,2]
[341558902,1730989834190,-150.0,0.00029895,2]
[341558903,1730989834199,-150.0,0.00029896,2]
[341558904,1730989834211,-21253.76116221,0.000299,2]
[341558905,1730989834220,-309.724189,0.000299,2]
[341558906,1730989834230,-500.0,0.000299,3]
[341558907,1730989834239,-5508.09726538,0.000299,3]
[341558908,1730989834248,-5800.0,0.000299,2]
[341558909,1730989834257,-206.20051564,0.000299,2]
[341558910,1730989834267,-339.10300833,0.000299,2]
[341558911,1730989834277,-500.0,0.000299,3]
[341558912,1730989834286,-2219.59819315,0.000299,15]
[341558913,1730989834295,-150.0,0.000299,2]
[341558914,1730989834305,-72339.87290109,0.000299,2]
[341558915,1730989834314,-345.33938859,0.000299,2]
[341558916,1730989834324,-5800.0,0.000299,2]
[341558917,1730989834333,-1319.64988675,0.000299,2]
[341558918,1730989834342,-150.0,0.00029902,2]
[341558919,1730989834352,-150.0,0.00029905,2]
[341558920,1730989834361,-150.0,0.00029907,2]
[341558921,1730989834371,-150.0,0.00029907,2]
[341558922,1730989834380,-150.0,0.00029908,2]
[341558923,1730989834389,-150.0,0.00029911,2]
[341558924,1730989834399,-150.0,0.00029916,2]
[341558925,1730989834409,-1500.0,0.00029916,2]
[341558926,1730989834418,-150.0,0.00029918,2]
[341558927,1730989834427,-150.0,0.0002992,2]
[341558928,1730989834437,-1500.0,0.0002992,2]
[341558929,1730989834446,-150.0,0.00029922,2]
[341558930,1730989834459,-1500.0,0.00029923,2]
[341558931,1730989834468,-150.0,0.00029926,2]
[341558932,1730989834478,-150.0,0.00029926,2]
[341558933,1730989834488,-150.0,0.0002993,2]
[341558934,1730989834498,-150.0,0.00029931,2]
[341558935,1730989834507,-150.0,0.00029932,2]
[341558936,1730989834516,-150.0,0.00029934,2]
[341558937,1730989834526,-150.0,0.00029934,2]
[341558938,1730989834535,-150.0,0.00029936,2]
[341558939,1730989834544,-150.0,0.00029936,2]
[341558940,1730989834554,-150.0,0.00029937,2]
[341558941,1730989834564,-1500.0,0.00029938,2]
[341558942,1730989834574,-150.0,0.00029942,2]
[341558943,1730989834583,-150.0,0.00029949,2]
[341558944,1730989834593,-1500.0,0.00029952,2]
[341558945,1730989834603,-150.0,0.00029953,2]
[341558946,1730989834612,-150.0,0.00029953,2]
[341558947,1730989834622,-150.0,0.00029955,2]
[341558948,1730989834636,-150.0,0.00029959,2]
[341558949,1730989834645,-150.0,0.00029959,2]
[341558950,1730989834655,-150.0,0.00029962,2]
[341558951,1730989834664,-150.0,0.00029962,2]
[341558952,1730989834676,-150.0,0.00029964,2]
[341558953,1730989834686,-150.0,0.00029968,2]
[341558954,1730989834696,-150.0,0.0002997,2]
[341558955,1730989834709,-150.0,0.00029971,2]
[341558956,1730989834719,-150.0,0.00029972,2]
[341558957,1730989834730,-150.0,0.00029972,2]
[341558958,1730989834739,-500.86072452,0.00029973,5]
[341558959,1730989834748,-160.76200353,0.00029973,5]
[341558960,1730989834758,-500.0,0.00029973,5]
[341558961,1730989834767,-500.0,0.00029973,5]
[341558962,1730989834777,-500.0,0.00029973,5]
[341558963,1730989834787,-202.64188914,0.00029973,5]
[341558964,1730989834797,-500.0,0.00029973,2]
[341558965,1730989834806,-465.24957749,0.00029973,5]
[341558966,1730989834817,-150.0,0.00029973,2]
[341558967,1730989834826,-150.0,0.00029975,2]
[341558968,1730989834836,-1500.0,0.00029975,2]
[341558969,1730989834846,-150.0,0.00029977,2]
[341558970,1730989834855,-150.0,0.00029978,2]
[341558971,1730989834865,-150.0,0.00029978,2]
[341558972,1730989834875,-150.0,0.00029978,2]
[341558973,1730989834884,-150.0,0.00029978,2]
[341558974,1730989834894,-150.0,0.00029981,2]
[341558975,1730989834903,-150.0,0.00029981,2]
[341558976,1730989834913,-150.0,0.00029982,2]
[341558977,1730989834923,-150.0,0.00029987,2]
[341558978,1730989834934,-150.0,0.00029987,2]
[341558979,1730989834943,-150.0,0.00029989,2]
[341558980,1730989834953,-150.0,0.00029989,2]
[341558981,1730989834964,-6023.5433588,0.0002999,2]
[341558982,1730989834973,-5322.9030403,0.0002999,2]
[341558983,1730989834982,-2761.032585,0.0002999,2]
[341558984,1730989834991,-150.0,0.0002999,2]
[341558985,1730989835002,-150.0,0.00029991,2]
[341558986,1730989835013,-150.0,0.00029991,2]
[341558987,1730989835022,-150.0,0.00029991,2]
[341558988,1730989835033,-150.0,0.00029991,2]
[341558989,1730989835043,-150.0,0.00029993,2]
[341558990,1730989835052,-1500.0,0.00029994,2]
[341558991,1730989835306,-200.0,0.00029999,2]
[341558992,1730989835317,-200.0,0.00029999,2]
[341558993,1730989835327,-199.0,0.00029999,2]
[341558994,1730989835336,-300.02,0.00029999,2]
[341558995,1730989835345,-2745.01100004,0.00029999,2]
[341558996,1730989835355,-150.0,0.00029999,30]
[341558997,1730989835364,-22783.74935475,0.00029999,2]
[341558998,1730989835373,-224.07904099,0.00029999,2]
[341558999,1730989835383,-500.0,0.00029999,7]
[341559000,1730989835392,-151.0,0.0003,2]
[341559001,1730989835401,-239.92824521,0.0003,2]
[341559002,1730989835410,-38620.13807062,0.0003,5]
[341559003,1730989835426,-22480.96339663,0.0003,5]
[341559004,1730989835443,-175.28502876,0.0002999,2]
[341559005,1730989835453,-6056.00386833,0.0003,5]
[341559008,1730989837616,-94.88369672,0.00029723,2]
[341559009,1730989837821,-55.11630328,0.00029723,2]
[341559010,1730989837831,-150.0,0.00029725,2]
[341559011,1730989837842,-150.0,0.00029725,2]
[341559012,1730989837853,-150.0,0.00029729,2]
[341559013,1730989837862,-150.0,0.0002973,2]
[341559014,1730989837872,-150.0,0.00029732,2]
[341559015,1730989837882,-150.0,0.00029733,2]
[341559016,1730989837891,-150.0,0.00029744,2]
[341559017,1730989837900,-150.0,0.00029748,2]
[341559018,1730989837910,-150.0,0.00029754,2]
[341559019,1730989837919,-150.0,0.00029755,2]
[341559020,1730989837928,-150.0,0.00029755,2]
[341559021,1730989837938,-150.0,0.00029757,2]
[341559022,1730989837947,-150.0,0.00029761,2]
[341559023,1730989837958,-150.0,0.00029762,2]
[341559024,1730989837968,-150.0,0.00029764,2]
[341559025,1730989837978,-150.0,0.00029765,2]
[341559026,1730989837988,-150.0,0.00029772,2]
[341559027,1730989837997,-150.0,0.00029774,2]
[341559028,1730989838007,-150.0,0.00029778,2]
[341559029,1730989838017,-150.0,0.00029781,2]
[341559030,1730989838026,-150.0,0.00029784,2]
[341559031,1730989838036,-150.0,0.00029785,2]
[341559032,1730989838046,-150.0,0.00029786,2]
[341559033,1730989838056,-150.0,0.00029788,2]
[341559034,1730989838065,-150.0,0.00029788,2]
[341559035,1730989838076,-150.0,0.00029794,2]
[341559036,1730989838085,-150.0,0.00029794,2]
[341559037,1730989838095,-150.0,0.00029795,2]
[341559038,1730989838105,-150.0,0.00029798,2]
[341559039,1730989838115,-150.0,0.00029801,2]
[341559040,1730989838125,-150.0,0.00029805,2]
[341559041,1730989838134,-150.0,0.00029811,2]
[341559042,1730989838145,-150.0,0.00029811,2]
[341559043,1730989838154,-150.0,0.00029813,2]
[341559044,1730989838163,-150.0,0.00029818,2]
[341559045,1730989838173,-150.0,0.00029821,2]
[341559046,1730989838182,-150.0,0.00029836,2]
[341559047,1730989838191,-150.0,0.00029837,2]
[341559048,1730989838201,-150.0,0.00029846,2]
[341559049,1730989838212,-150.0,0.00029847,2]
[341559050,1730989838221,-150.0,0.00029851,2]
[341559051,1730989838231,-150.0,0.00029855,2]
[341559052,1730989838241,-150.0,0.00029857,2]
[341559053,1730989838250,-150.0,0.00029857,2]
[341559054,1730989838260,-150.0,0.00029863,2]
[341559055,1730989838270,-150.0,0.00029866,2]
[341559056,1730989838279,-150.0,0.00029866,2]
[341559057,1730989838288,-150.0,0.00029871,2]
[341559058,1730989838298,-150.0,0.00029879,2]
[341559059,1730989838307,-232.92349927,0.00029881,2]
[341559060,1730989838317,-150.0,0.00029883,2]
[341559061,1730989838326,-150.0,0.00029885,2]
[341559062,1730989838335,-150.0,0.00029885,2]
[341559063,1730989838345,-150.0,0.00029888,2]
[341559064,1730989838354,-150.0,0.00029897,2]
[341559065,1730989838363,-500.0,0.00029899,2]
[341559066,1730989838373,-500.0,0.00029899,2]
[341559067,1730989838382,-500.0,0.00029899,2]
[341559068,1730989838391,-500.0,0.00029899,2]